fUSD/lending_fUSD_20251225
["ID","MTS","AMOUNT","RATE_DAILY","PERIOD"]
[399751519,1766658642270,-156.92142475,0.00015905,2]
[399751520,1766658642280,-150.0,0.00015905,2]
[399751521,1766658642292,-150.0,0.00015905,2]
[399751522,1766658642304,-150.0,0.00015907,2]
[399751523,1766658642315,-150.0,0.00015911,2]
[399751524,1766658642325,-178.0,0.00015912,2]
[399751526,1766658642335,-150.0,0.00015919,2]
[399751528,1766658642346,-194.50106884,0.00015923,2]
[399751529,1766658642355,-156.92142475,0.00015923,2]
[399751530,1766658642365,-150.0,0.00015925,2]
[399751531,1766658642375,-150.0,0.00015927,2]
[399751532,1766658642385,-150.0,0.00015929,2]
[399751533,1766658642395,-194.50106884,0.0001594,2]
[399751534,1766658642405,-156.92142475,0.0001594,2]
[399751535,1766658642416,-150.0,0.00015943,2]
[399751536,1766658642427,-150.0,0.00015947,2]
[399751537,1766658642443,-150.0,0.00015948,2]
[399751538,1766658642452,-150.0,0.00015952,2]
[399751539,1766658642462,-194.50106884,0.00015957,2]
[399751541,1766658642472,-156.92142475,0.00015957,2]
[399751542,1766658642482,-150.0,0.00015957,2]
[399751543,1766658642492,-150.0,0.00015967,2]
[399751544,1766658642503,-150.0,0.00015967,2]
[399751545,1766658642513,-150.0,0.00015967,2]
[399751546,1766658642522,-194.50106884,0.00015974,2]
[399751547,1766658642532,-156.92142475,0.00015974,2]
[399751548,1766658642543,-150.0,0.00015983,2]
[399751549,1766658642553,-150.0,0.00015986,2]
[399751550,1766658642563,-150.0,0.00015987,2]
[399751551,1766658642574,-150.0,0.00015987,2]
[399751552,1766658642584,-1359.94516046,0.00015988,2]
[399751553,1766658642594,-194.50106884,0.00015991,2]
[399751554,1766658642605,-156.92142475,0.00015991,2]
[399751555,1766658642616,-150.0,0.00015991,2]
[399751556,1766658642627,-151.0,0.00015997,2]
[399751557,1766658642638,-6775.69878296,0.00016,2]
[399751558,1766658642650,-196850.3240351,0.00016,2]
[399751559,1766658642661,-611.79223266,0.00016,2]
[399751560,1766658642673,-486815.18836141,0.00016,4]
[399751561,1766658642683,-150.0,0.00016005,2]
[399751562,1766658642693,-150.0,0.00016007,2]
[399751563,1766658642703,-194.50106884,0.00016008,2]
[399751564,1766658642714,-156.92142475,0.00016008,2]
[399751565,1766658642724,-150.0,0.00016008,2]
[399751566,1766658642734,-269.24,0.00016015,2]
[399751567,1766658642744,-150.0,0.00016016,2]
[399751568,1766658642754,-150.0,0.00016024,2]
[399751569,1766658642765,-194.50106884,0.00016025,2]
[399751570,1766658642775,-156.92142475,0.00016025,2]
[399751571,1766658642786,-150.0,0.00016026,2]
[399751572,1766658642802,-150.0,0.00016027,2]
[399751573,1766658642812,-269.24,0.00016039,2]
[399751575,1766658642823,-150.0,0.0001604,2]
[399751577,1766658642833,-194.50106884,0.00016043,2]
[399751579,1766658642843,-156.92142475,0.00016043,2]
[399751580,1766658642854,-150.0,0.00016043,2]
[399751581,1766658642863,-320.0,0.00016045,2]
[399751582,1766658642874,-150.0,0.00016047,2]
[399751583,1766658642884,-194.50106884,0.0001606,2]
[399751584,1766658642894,-156.92142475,0.0001606,2]
[399751585,1766658642905,-150.0,0.0001606,2]
[399751586,1766658642915,-150.0,0.0001606,2]
[399751587,1766658642925,-150.0,0.00016061,2]
[399751588,1766658642935,-269.23800371,0.00016063,2]
[399751589,1766658642946,-150.0,0.00016064,2]
[399751590,1766658642956,-150.0,0.00016067,2]
[399751591,1766658642967,-320.0,0.00016068,2]
[399751592,1766658642978,-320.0,0.00016068,2]
[399751593,1766658642988,-194.50106884,0.00016077,2]
[399751594,1766658642999,-156.92142475,0.00016077,2]
[399751595,1766658643009,-150.0,0.0001608,2]
[399751596,1766658643020,-150.0,0.00016087,2]
[399751597,1766658643030,-150.0,0.00016087,2]
[399751598,1766658643041,-150.0,0.00016088,2]
[399751599,1766658643051,-194.50106884,0.00016094,2]
[399751600,1766658643061,-156.92142475,0.00016094,2]
[399751601,1766658643071,-150.0,0.00016099,2]
[399751602,1766658643081,-150.0,0.000161,2]
[399751603,1766658643091,-1922.31035711,0.00016104,2]
[399751604,1766658643101,-150.0,0.00016107,2]
[399751605,1766658643111,-194.50106884,0.00016111,2]
[399751606,1766658643121,-156.92142475,0.00016111,2]
[399751607,1766658643131,-150.0,0.00016111,2]
[399751608,1766658643141,-150.0,0.00016113,2]
[399751609,1766658643157,-150.0,0.00016118,2]
[399751610,1766658643167,-320.0,0.00016125,2]
[399751611,1766658643178,-150.0,0.00016127,2]
[399751612,1766658643188,-194.50106884,0.00016128,2]
[399751613,1766658643200,-156.92142475,0.00016128,2]
[399751614,1766658643210,-150.0,0.00016137,2]
[399751615,1766658643221,-150.0,0.00016137,2]
[399751616,1766658643233,-150.0,0.00016137,2]
[399751617,1766658643244,-150.0,0.00016137,2]
[399751618,1766658643255,-150.0,0.00016137,2]
[399751619,1766658643266,-150.0,0.00016137,2]
[399751620,1766658643276,-194.50106884,0.00016146,2]
[399751621,1766658643287,-156.92142475,0.00016146,2]
[399751622,1766658643300,-150.0,0.00016147,2]
[399751623,1766658643310,-150.0,0.00016156,2]
[399751624,1766658643320,-150.0,0.00016161,2]
[399751625,1766658643331,-194.50106884,0.00016163,2]
[399751626,1766658643341,-156.92142475,0.00016163,2]
[399751627,1766658643351,-150.0,0.00016163,2]
[399751628,1766658643362,-150.0,0.00016167,2]
[399751629,1766658643372,-583.07830005,0.00016173,2]
[399751630,1766658643382,-150.0,0.00016174,2]
[399751631,1766658643393,-150.0,0.00016175,2]
[399751632,1766658643403,-41325.20904142,0.0001618,2]
[399751633,1766658643413,-194.50106884,0.0001618,2]
[399751634,1766658643424,-156.92142475,0.0001618,2]
[399751635,1766658643435,-150.0,0.00016186,2]
[399751636,1766658643445,-287.47,0.00016186,2]
[399751637,1766658643455,-150.0,0.00016187,2]
[399751638,1766658643465,-150.0,0.00016187,2]
[399751639,1766658643475,-151.0,0.00016193,2]
[399751640,1766658643484,-19940.00112116,0.00016194,2]
[399751641,1766658643495,-43519.98754596,0.00016194,2]
[399751642,1766658643505,-150.0,0.00016194,2]
[399751643,1766658643515,-194.50106884,0.00016197,2]
[399751644,1766658643526,-156.92142475,0.00016197,2]
[399751645,1766658643535,-37026.03788674,0.000162,5]
[399751646,1766658643545,-150.0,0.00016207,2]
[399751647,1766658643556,-150.0,0.0001621,2]
[399751648,1766658643566,-150.0,0.00016212,2]
[399751649,1766658643577,-194.50106884,0.00016214,2]
[399751650,1766658643587,-156.92142475,0.00016214,2]
[399751651,1766658643598,-150.0,0.00016214,2]
[399751652,1766658643608,-150.0,0.00016214,2]
[399751653,1766658643619,-320.0,0.00016216,2]
[399751654,1766658643630,-150.0,0.00016227,2]
[399751655,1766658643640,-194.50106884,0.00016231,2]
[399751656,1766658643651,-156.92142475,0.00016231,2]
[399751657,1766658643661,-150.0,0.00016231,2]
[399751658,1766658643672,-150.0,0.00016234,2]
[399751659,1766658643683,-150.0,0.00016247,2]
[399751660,1766658643694,-150.0,0.00016248,2]
[399751661,1766658643704,-194.50106884,0.00016249,2]
[399751662,1766658643714,-156.92142475,0.00016249,2]
[399751663,1766658643725,-150.0,0.0001625,2]
[399751664,1766658643736,-150.0,0.00016258,2]
[399751665,1766658643747,-150.0,0.00016266,2]
[399751666,1766658643758,-194.50106884,0.00016266,2]
[399751667,1766658643768,-156.92142475,0.00016266,2]
[399751668,1766658643778,-150.0,0.00016267,2]
[399751669,1766658643788,-150.0,0.00016269,2]
[399751670,1766658643799,-150.0,0.00016283,2]
[399751671,1766658643808,-194.50106884,0.00016283,2]
[399751672,1766658643819,-156.92142475,0.00016283,2]
[399751673,1766658643829,-150.0,0.00016287,2]
[399751674,1766658643839,-150.0,0.00016287,2]
[399751675,1766658643848,-150.0,0.00016288,2]
[399751676,1766658643859,-150.0,0.00016291,2]
[399751677,1766658643869,-194.50106884,0.000163,2]
[399751678,1766658643879,-156.92142475,0.000163,2]
[399751679,1766658643889,-1922.31035711,0.00016303,2]
[399751680,1766658643899,-150.0,0.00016307,2]
[399751681,1766658643909,-150.0,0.00016307,2]
[399751682,1766658643920,-150.0,0.00016307,2]
[399751683,1766658643930,-18828.04568075,0.00016312,2]
[399751684,1766658643940,-194.50106884,0.00016317,2]
[399751685,1766658643950,-156.92142475,0.00016317,2]
[399751686,1766658643961,-150.0,0.00016317,2]
[399751687,1766658643971,-150.0,0.00016322,2]
[399751688,1766658643981,-150.0,0.00016326,2]
[399751689,1766658643991,-150.0,0.00016327,2]
[399751690,1766658644001,-150.0,0.00016331,2]
[399751691,1766658644011,-194.50106884,0.00016334,2]
[399751692,1766658644023,-156.92142475,0.00016334,2]
[399751693,1766658644034,-150.0,0.00016345,2]
[399751694,1766658644044,-150.0,0.00016347,2]
[399751695,1766658644054,-150.0,0.00016349,2]
[399751696,1766658644065,-194.50106884,0.00016351,2]
[399751697,1766658644075,-156.92142475,0.00016351,2]
[399751698,1766658644085,-320.0,0.00016353,2]
[399751699,1766658644096,-150.0,0.00016355,2]
[399751700,1766658644107,-150.0,0.00016363,2]
[399751701,1766658644117,-150.0,0.00016367,2]
[399751702,1766658644127,-194.50106884,0.00016369,2]
[399751703,1766658644136,-156.92142475,0.00016369,2]
[399751704,1766658644146,-150.0,0.00016369,2]
[399751705,1766658644157,-150.0,0.00016369,2]
[399751706,1766658644167,-150.0,0.0001638,2]
[399751707,1766658644178,-150.0,0.00016382,2]
[399751708,1766658644187,-194.50106884,0.00016386,2]
[399751709,1766658644197,-156.92142475,0.00016386,2]
[399751710,1766658644208,-150.0,0.00016387,2]
[399751711,1766658644218,-150.0,0.00016387,2]
[399751712,1766658644232,-150.0,0.00016395,2]
[399751713,1766658644242,-228.0,0.000164,2]
[399751714,1766658644252,-319.0,0.000164,2]
[399751715,1766658644263,-182.0,0.000164,2]
[399751716,1766658644272,-184.24951816,0.000164,2]
[399751717,1766658644283,-150.0,0.00016401,2]
[399751718,1766658644294,-194.50106884,0.00016403,2]
[399751719,1766658644304,-156.92142475,0.00016403,2]
[399751720,1766658644314,-150.0,0.00016404,2]
[399751721,1766658644324,-150.0,0.00016407,2]
[399751722,1766658644334,-194.50106884,0.0001642,2]
[399751723,1766658644344,-156.92142475,0.0001642,2]
[399751724,1766658644354,-150.0,0.0001642,2]
[399751725,1766658644364,-150.0,0.0001642,2]
[399751726,1766658644374,-150.0,0.0001642,2]
[399751727,1766658644385,-150.0,0.00016427,2]
[399751728,1766658644395,-150.0,0.00016428,2]
[399751729,1766658644406,-194.50106884,0.00016437,2]
[399751730,1766658644416,-156.92142475,0.00016437,2]
[399751731,1766658644426,-500.0,0.00016438,2]
[399751732,1766658644435,-500.0,0.00016438,2]
[399751733,1766658644445,-500.0,0.00016438,2]
[399751734,1766658644456,-500.0,0.00016438,2]
[399751735,1766658644466,-500.0,0.00016438,2]
[399751736,1766658644476,-611.30429079,0.00016438,2]
[399751737,1766658644486,-500.0,0.00016438,2]
[399751738,1766658644496,-500.0,0.00016438,2]
[399751739,1766658644507,-151.0,0.00016438,2]
[399751740,1766658644517,-264.770607,0.00016438,2]
[399751741,1766658644527,-716.0,0.00016438,2]
[399751742,1766658644538,-800.0,0.00016438,2]
[399751743,1766658644548,-829.65,0.00016438,2]
[399751744,1766658644558,-809.0,0.00016438,2]
[399751745,1766658644568,-150.0,0.00016439,2]
[399751746,1766658644579,-150.0,0.00016446,2]
[399751747,1766658644590,-150.0,0.00016447,2]
[399751748,1766658644600,-150.0,0.00016452,2]
[399751749,1766658644610,-194.50106884,0.00016454,2]
[399751750,1766658644620,-156.92142475,0.00016454,2]
[399751751,1766658644630,-150.0,0.00016458,2]
[399751752,1766658644640,-150.0,0.00016467,2]
[399751753,1766658644650,-150.0,0.00016469,2]
[399751754,1766658644660,-194.50106884,0.00016472,2]
[399751755,1766658644670,-156.92142475,0.00016472,2]
[399751756,1766658644680,-150.0,0.00016472,2]
[399751757,1766658644690,-150.0,0.00016477,2]
[399751758,1766658644701,-150.0,0.00016477,2]
[399751759,1766658644711,-150.0,0.00016487,2]
[399751760,1766658644722,-150.0,0.00016487,2]
[399751761,1766658644731,-194.50106884,0.00016489,2]
[399751762,1766658644742,-156.92142475,0.00016489,2]
[399751763,1766658644752,-150.0,0.00016496,2]
[399751764,1766658644762,-150.0,0.00016501,2]
[399751765,1766658644772,-1922.31035711,0.00016502,2]
[399751766,1766658644781,-194.50106884,0.00016506,2]
[399751767,1766658644792,-156.92142475,0.00016506,2]
[399751768,1766658644802,-150.0,0.00016507,2]
[399751769,1766658644812,-150.0,0.00016514,2]
[399751770,1766658644821,-194.50106884,0.00016523,2]
[399751771,1766658644831,-156.92142475,0.00016523,2]
[399751772,1766658644842,-150.0,0.00016523,2]
[399751773,1766658644851,-150.0,0.00016523,2]
[399751774,1766658644862,-150.0,0.00016525,2]
[399751775,1766658644872,-150.0,0.00016527,2]
[399751776,1766658644883,-150.0,0.00016533,2]
[399751777,1766658644893,-194.50106884,0.0001654,2]
[399751778,1766658644903,-156.92142475,0.0001654,2]
[399751779,1766658644913,-150.0,0.00016543,2]
[399751780,1766658644923,-150.0,0.00016547,2]
[399751781,1766658644933,-150.0,0.0001655,2]
[399751782,1766658644943,-150.0,0.00016552,2]
[399751783,1766658644953,-194.50106884,0.00016557,2]
[399751784,1766658644963,-156.92142475,0.00016557,2]
[399751785,1766658644973,-150.0,0.00016562,2]
[399751786,1766658644983,-150.0,0.00016562,2]
[399751787,1766658644993,-150.0,0.00016567,2]
[399751788,1766658645003,-150.0,0.00016571,2]
[399751789,1766658645013,-150.0,0.00016574,2]
[399751790,1766658645023,-194.50106884,0.00016575,2]
[399751791,1766658645033,-156.92142475,0.00016575,2]
[399751792,1766658645043,-150.0,0.00016575,2]
[399751793,1766658645053,-150.0,0.00016587,2]
[399751794,1766658645063,-150.0,0.00016587,2]
[399751795,1766658645073,-150.0,0.0001659,2]
[399751796,1766658645083,-194.50106884,0.00016592,2]
[399751797,1766658645094,-156.92142475,0.00016592,2]
[399751798,1766658645103,-4315.675,0.00016598,2]
[399751799,1766658645114,-210.521,0.00016598,2]
[399751800,1766658645124,-150.0,0.00016598,2]
[399751801,1766658645134,-177.37145397,0.000166,2]
[399751802,1766658645144,-358.86034089,0.000166,2]
[399751803,1766658645155,-150.0,0.000166,2]
[399751804,1766658645165,-150.0,0.00016607,2]
[399751805,1766658645176,-194.50106884,0.00016609,2]
[399751806,1766658645186,-156.92142475,0.00016609,2]
[399751807,1766658645197,-150.0,0.00016609,2]
[399751808,1766658645207,-150.0,0.00016617,2]
[399751809,1766658645217,-150.0,0.00016622,2]
[399751810,1766658645231,-194.50106884,0.00016626,2]
[399751811,1766658645242,-156.92142475,0.00016626,2]
[399751812,1766658645252,-150.0,0.00016626,2]
[399751813,1766658645263,-150.0,0.00016627,2]
[399751814,1766658645274,-150.0,0.00016628,2]
[399751815,1766658645284,-398.62325352,0.00016632,2]
[399751816,1766658645295,-194.50106884,0.00016643,2]
[399751817,1766658645305,-156.92142475,0.00016643,2]
[399751818,1766658645315,-150.0,0.00016647,2]
[399751819,1766658645326,-150.0,0.00016647,2]
[399751820,1766658645336,-150.0,0.00016647,2]
[399751822,1766658645345,-151.0,0.00016657,2]
[399751824,1766658645355,-151.0,0.0001666,2]
[399751825,1766658645366,-151.0,0.0001666,2]
[399751827,1766658645376,-4229.44051462,0.0001666,2]
[399751828,1766658645386,-194.50106884,0.0001666,2]
[399751830,1766658645396,-156.92142475,0.0001666,2]
[399751831,1766658645406,-150.0,0.00016665,2]
[399751832,1766658645417,-150.0,0.00016667,2]
[399751833,1766658645427,-150.0,0.00016671,2]
[399751834,1766658645437,-194.50106884,0.00016677,2]
[399751835,1766658645448,-156.92142475,0.00016677,2]
[399751836,1766658645459,-150.0,0.00016677,2]
[399751837,1766658645469,-150.0,0.00016677,2]
[399751838,1766658645479,-150.0,0.00016684,2]
[399751839,1766658645489,-150.0,0.00016687,2]
[399751840,1766658645499,-150.0,0.00016687,2]
[399751841,1766658645509,-162.64,0.00016688,2]
[399751842,1766658645519,-150.0,0.00016691,2]
[399751843,1766658645528,-194.50106884,0.00016695,2]
[399751844,1766658645538,-156.92142475,0.00016695,2]
[399751845,1766658645549,-150.0,0.00016695,2]
[399751846,1766658645559,-1922.31035711,0.00016701,2]
[399751847,1766658645569,-150.0,0.00016703,2]
[399751848,1766658645581,-150.0,0.00016703,2]
[399751849,1766658645591,-150.0,0.00016707,2]
[399751850,1766658645602,-194.50106884,0.00016712,2]
[399751851,1766658645612,-156.92142475,0.00016712,2]
[399751852,1766658645622,-150.0,0.00016719,2]
[399751853,1766658645632,-150.0,0.00016722,2]
[399751854,1766658645643,-150.0,0.00016727,2]
[399751855,1766658645654,-150.0,0.00016728,2]
[399751856,1766658645665,-194.50106884,0.00016729,2]
[399751857,1766658645676,-156.92142475,0.00016729,2]
[399751858,1766658645687,-150.0,0.00016729,2]
[399751859,1766658645697,-1000.0,0.00016729,2]
[399751860,1766658645707,-166977.4953367,0.00016732,2]
[399751861,1766658645718,-153.471607,0.00016732,2]
[399751863,1766658645727,-258.615269,0.00016732,2]
[399751864,1766658645738,-258.615269,0.00016732,2]
[399751865,1766658645748,-258.615269,0.00016732,2]
[399751866,1766658645758,-258.615269,0.00016732,2]
[399751867,1766658645768,-151.0,0.00016732,2]
[399751868,1766658645779,-151.0,0.00016732,2]
[399751869,1766658645788,-151.0,0.00016732,2]
[399751870,1766658645799,-150.0,0.00016734,2]
[399751871,1766658645809,-150.0,0.00016741,2]
[399751872,1766658645818,-150.0,0.00016744,2]
[399751873,1766658645829,-194.50106884,0.00016746,2]
[399751874,1766658645840,-156.92142475,0.00016746,2]
[399751875,1766658645850,-150.0,0.00016746,2]
[399751876,1766658645860,-150.0,0.00016755,2]
[399751877,1766658645870,-1000.0,0.00016757,2]
[399751878,1766658645880,-150.0,0.0001676,2]
[399751879,1766658645890,-158.0186416,0.0001676,2]
[399751880,1766658645899,-50619.59407713,0.00016763,2]
[399751881,1766658645910,-151.0,0.00016763,2]
[399751882,1766658645919,-151.0,0.00016763,2]
[399751883,1766658645929,-194.50106884,0.00016763,2]
[399751884,1766658645939,-156.92142475,0.00016763,2]
[399751885,1766658645949,-150.0,0.00016765,2]
[399751886,1766658645960,-300.0,0.00016765,2]
[399751887,1766658645970,-150.0,0.00016766,2]
[399751888,1766658645980,-398.62325351,0.00016766,2]
[399751889,1766658645990,-150.0,0.00016766,2]
[399751890,1766658646000,-150.0,0.00016768,2]
[399751891,1766658646010,-300.0,0.00016773,2]
[399751892,1766658646020,-150.0,0.00016774,2]
[399751893,1766658646030,-300.0,0.00016775,2]
[399751894,1766658646040,-150.0,0.00016779,2]
[399751895,1766658646050,-194.50106884,0.0001678,2]
[399751896,1766658646062,-156.92142475,0.0001678,2]
[399751897,1766658646196,-150.0,0.0001678,2]
[399751898,1766658646248,-150.0,0.00016786,2]
[399751899,1766658646259,-150.0,0.00016786,2]
[399751900,1766658646268,-150.0,0.00016786,2]
[399751901,1766658646279,-300.0,0.00016792,2]
[399751902,1766658646289,-150.0,0.00016792,2]
[399751903,1766658646299,-194.50106884,0.00016798,2]
[399751904,1766658646309,-156.92142475,0.00016798,2]
[399751905,1766658646319,-150.0,0.00016798,2]
[399751906,1766658646329,-224.59309911,0.000168,2]
[399751907,1766658646339,-150.0,0.00016806,2]
[399751908,1766658646349,-194.50106884,0.00016815,2]
[399751909,1766658646360,-156.92142475,0.00016815,2]
[399751910,1766658646370,-150.0,0.00016816,2]
[399751911,1766658646380,-150.0,0.00016816,2]
[399751912,1766658646391,-300.0,0.00016817,2]
[399751913,1766658646400,-1000.0,0.00016821,2]
[399751914,1766658646410,-150.0,0.00016826,2]
[399751915,1766658646420,-500.0,0.00016831,2]
[399751916,1766658646431,-194.50106884,0.00016832,2]
[399751917,1766658646443,-156.92142475,0.00016832,2]
[399751918,1766658646453,-150.0,0.00016832,2]
[399751919,1766658646463,-150.0,0.00016832,2]
[399751920,1766658646473,-150.0,0.00016835,2]
[399751921,1766658646483,-320.0,0.00016836,2]
[399751922,1766658646493,-150.0,0.00016837,2]
[399751923,1766658646503,-150.0,0.00016839,2]
[399751924,1766658646513,-1000.0,0.0001684,2]
[399751925,1766658646523,-150.0,0.00016841,2]
[399751926,1766658646533,-150.0,0.00016844,2]
[399751927,1766658646544,-150.0,0.00016846,2]
[399751928,1766658646555,-300.0,0.00016847,2]
[399751929,1766658646565,-300.0,0.00016849,2]
[399751930,1766658646575,-194.50106884,0.00016849,2]
[399751931,1766658646585,-156.92142475,0.00016849,2]
[399751932,1766658646596,-150.0,0.00016851,2]
[399751933,1766658646606,-150.0,0.00016854,2]
[399751934,1766658646616,-320.0,0.00016859,2]
[399751935,1766658646626,-200.0,0.00016863,2]
[399751936,1766658646637,-200.0,0.00016864,2]
[399751937,1766658646647,-200.0,0.00016864,2]
[399751938,1766658646658,-150.0,0.00016865,2]
[399751939,1766658646668,-194.50106884,0.00016866,2]
[399751940,1766658646679,-156.92142475,0.00016866,2]
[399751941,1766658646690,-150.0,0.00016866,2]
[399751942,1766658646699,-150.0,0.00016873,2]
[399751943,1766658646710,-229.0,0.00016877,2]
[399751944,1766658646719,-194.50106884,0.00016883,2]
[399751945,1766658646730,-156.92142475,0.00016883,2]
[399751946,1766658646741,-150.0,0.00016883,2]
[399751947,1766658646751,-150.0,0.00016886,2]
[399751948,1766658646761,-150.0,0.00016886,2]
[399751949,1766658646771,-150.0,0.00016889,2]
[399751950,1766658646781,-150.0,0.0001689,2]
[399751951,1766658646791,-150.0,0.00016892,2]
[399751952,1766658646801,-151.0,0.00016893,2]
[399751953,1766658646811,-86600.2715875,0.00016893,2]
[399751954,1766658646820,-170.28248417,0.000169,2]
[399751955,1766658646830,-398.62325351,0.000169,2]
[399751956,1766658646840,-156.81485744,0.000169,2]
[399751957,1766658646850,-19940.00112116,0.000169,2]
[399751958,1766658646861,-789.11969302,0.000169,2]
[399751959,1766658646871,-43519.98754596,0.000169,2]
[399751960,1766658646881,-1359.94516046,0.000169,2]
[399751961,1766658646891,-1922.31035711,0.000169,2]
[399751962,1766658646901,-1521.84196611,0.000169,2]
[399751963,1766658646912,-2252.3458058,0.000169,2]
[399751964,1766658646921,-194.50106884,0.00016901,2]
[399751965,1766658646932,-156.92142475,0.00016901,2]
[399751966,1766658646941,-1000.0,0.00016904,2]
[399751967,1766658646951,-150.0,0.00016905,2]
[399751968,1766658646961,-150.0,0.00016906,2]
[399751969,1766658646971,-150.0,0.00016907,2]
[399751970,1766658646981,-150.0,0.00016909,2]
[399751971,1766658646992,-150.0,0.00016911,2]
[399751972,1766658647002,-150.0,0.00016912,2]
[399751973,1766658647012,-150.0,0.00016914,2]
[399751974,1766658647023,-194.50106884,0.00016918,2]
[399751975,1766658647033,-156.92142475,0.00016918,2]
[399751976,1766658647043,-303.0,0.00016919,2]
[399751977,1766658647053,-202.0,0.00016921,2]
[399751978,1766658647065,-300.0,0.00016924,2]
[399751979,1766658647075,-150.0,0.00016926,2]
[399751980,1766658647084,-150.0,0.0001693,2]
[399751981,1766658647094,-320.0,0.00016931,2]
[399751982,1766658647104,-300.0,0.00016933,2]
[399751983,1766658647116,-194.50106884,0.00016935,2]
[399751984,1766658647126,-156.92142475,0.00016935,2]
[399751985,1766658647136,-150.0,0.00016935,2]
[399751986,1766658647145,-150.0,0.00016938,2]
[399751987,1766658647156,-150.0,0.00016946,2]
[399751988,1766658647165,-150.0,0.00016949,2]
[399751989,1766658647175,-1000.0,0.00016949,2]
[399751990,1766658647186,-194.50106884,0.00016952,2]
[399751991,1766658647196,-156.92142475,0.00016952,2]
[399751992,1766658647206,-1227.0,0.00016959,2]
[399751993,1766658647217,-300.0,0.00016959,2]
[399751994,1766658647230,-150.0,0.00016962,2]
[399751995,1766658647241,-300.0,0.00016965,2]
[399751996,1766658647251,-150.0,0.00016965,2]
[399751997,1766658647263,-2444.0,0.00016965,2]
[399751998,1766658647273,-1000.0,0.00016966,2]
[399751999,1766658647282,-150.0,0.00016966,2]
[399752000,1766658647293,-1000.0,0.00016967,2]
[399752001,1766658647304,-150.0,0.00016967,2]
[399752002,1766658647314,-2000.0,0.00016969,2]
[399752003,1766658647324,-194.50106884,0.00016969,2]
[399752004,1766658647333,-156.92142475,0.00016969,2]
[399752005,1766658647344,-500.0,0.00016973,2]
[399752006,1766658647354,-500.26609484,0.00016973,2]
[399752007,1766658647363,-322.88246699,0.00016973,2]
[399752008,1766658647374,-174.86770557,0.00016973,2]
[399752009,1766658647384,-164.91223401,0.00016973,2]
[399752010,1766658647394,-500.0,0.00016973,2]
[399752011,1766658647409,-500.0,0.00016973,2]
[399752012,1766658647418,-500.0,0.00016973,2]
[399752013,1766658647428,-223.10484954,0.00016973,2]
[399752014,1766658647438,-500.0,0.00016973,2]
[399752015,1766658647449,-500.0,0.00016973,2]
[399752016,1766658647458,-500.0,0.00016973,2]
[399752017,1766658647468,-160.24066084,0.00016973,2]
[399752018,1766658647478,-578.60342662,0.00016973,2]
[399752019,1766658647488,-500.0,0.00016973,2]
[399752020,1766658647498,-500.0,0.00016973,2]
[399752021,1766658647508,-500.0,0.00016973,2]
[399752022,1766658647518,-157.08021771,0.00016973,2]
[399752023,1766658647527,-538.67026127,0.00016973,2]
[399752024,1766658647538,-162.14010423,0.00016973,2]
[399752025,1766658647548,-318.77837914,0.00016973,2]
[399752026,1766658647558,-500.0,0.00016973,2]
[399752027,1766658647568,-216.53235299,0.00016973,2]
[399752028,1766658647577,-500.0,0.00016973,2]
[399752029,1766658647588,-501.7326664,0.00016973,2]